bitfinex/quotes_BTCUSD_20241206
["timestamp","ask_amount","ask_price","bid_price","bid_amount"]
[1733490272944,0.00144409,97940.0,97939.0,0.10905253]
[1733490273186,0.00144409,97940.0,97939.0,0.10903154]
[1733490273619,0.00144409,97940.0,97939.0,0.10803154]
[1733490273826,0.00144409,97940.0,97939.0,0.003]
[1733490274248,0.00144409,97940.0,97939.0,0.004]
[1733490274249,0.02444409,97940.0,97939.0,0.004]
[1733490274477,0.02444409,97940.0,97939.0,0.001]
[1733490274893,0.02444409,97940.0,97939.0,0.005]
[1733490275130,0.02546702,97940.0,97939.0,0.005]
[1733490275368,0.02444409,97940.0,97939.0,0.005]
[1733490276511,0.02546702,97940.0,97939.0,0.005]
[1733490277417,0.02546702,97940.0,97939.0,0.004]
[1733490277827,0.02546702,97940.0,97939.0,0.005]
[1733490278503,0.02546702,97940.0,97939.0,0.004]
[1733490278949,0.02546702,97940.0,97939.0,0.001]
[1733490279365,0.02546702,97940.0,97939.0,0.004]
[1733490279608,0.00246702,97940.0,97939.0,0.004]
[1733490279794,0.00144409,97940.0,97939.0,0.004]
[1733490280005,0.204205,97941.0,97939.0,0.004]
[1733490280232,0.20437922,97941.0,97939.0,0.004]
[1733490280887,0.02402293,97940.0,97939.0,0.004]
[1733490281131,0.02402293,97940.0,97939.0,0.003]
[1733490281373,0.02402293,97940.0,97939.0,0.004]
[1733490281807,0.02402293,97940.0,97939.0,0.003]
[1733490282259,0.02402293,97940.0,97939.0,0.004]
[1733490282697,0.02402293,97940.0,97939.0,0.001]
[1733490283146,0.10512293,97940.0,97939.0,0.004]
[1733490283357,0.15202293,97940.0,97939.0,0.004]
[1733490283575,0.15202293,97940.0,97939.0,0.003]
[1733490283801,0.023,97938.0,97930.0,0.001726]
[1733490284027,0.00102293,97937.0,97930.0,0.001726]
[1733490284933,0.023,97932.0,97930.0,0.001726]
[1733490285135,0.02402293,97932.0,97930.0,0.001726]
[1733490285797,0.02402293,97932.0,97931.0,0.13731394]
[1733490286066,0.02402293,97932.0,97930.0,0.13923536]
[1733490286292,0.227225,97931.0,97930.0,0.13923536]
[1733490286503,0.227225,97931.0,97930.0,0.001726]
[1733490288406,0.227225,97931.0,97930.0,0.09340869]
[1733490288621,0.227225,97931.0,97930.0,0.001726]
[1733490288622,0.228225,97931.0,97930.0,0.001726]
[1733490296794,0.001,97931.0,97930.0,0.10675754]
[1733490297013,0.001,97931.0,97930.0,0.19844023]
[1733490297436,0.001,97931.0,97930.0,0.10675754]
[1733490298113,0.001,97931.0,97930.0,0.2442669]
[1733490298318,0.001,97931.0,97930.0,0.10675754]
[1733490299438,0.001,97931.0,97930.0,0.24425844]
[1733490299654,0.001,97931.0,97930.0,0.10675754]
[1733490300115,0.001,97931.0,97930.0,0.58263226]
[1733490300352,0.001,97931.0,97930.0,0.58262834]
[1733490300585,0.001,97931.0,97930.0,0.44513136]
[1733490300794,0.001,97931.0,97930.0,0.24425105]
[1733490300996,0.001,97931.0,97930.0,0.10675754]
[1733490301215,0.001,97931.0,97930.0,0.44614104]
[1733490301400,0.001,97931.0,97930.0,0.44512011]
[1733490301646,0.001,97931.0,97930.0,0.62845465]
[1733490302288,0.000863,97940.0,97930.0,0.62845465]
[1733490302289,0.000863,97940.0,97935.0,0.204216]
[1733490302498,0.000863,97940.0,97937.0,0.09165816]
[1733490302713,0.000863,97940.0,97938.0,0.10605247]
[1733490303157,0.000863,97940.0,97938.0,0.10503154]
[1733490303395,0.004863,97940.0,97938.0,0.10503154]
[1733490303599,0.023,97939.0,97938.0,0.10503154]
[1733490303827,0.000863,97940.0,97938.0,0.10503154]
[1733490304023,0.023,97939.0,97938.0,0.10503154]
[1733490304586,0.000863,97940.0,97938.0,0.10503154]
[1733490305269,0.000863,97940.0,97939.0,0.00102094]
[1733490305530,0.000863,97940.0,97939.0,0.4443476]
[1733490305753,0.004863,97940.0,97939.0,0.44332666]
[1733490305991,0.000863,97940.0,97939.0,0.44330132]
[1733490306223,0.006863,97940.0,97939.0,0.44330132]
[1733490306747,0.003863,97940.0,97939.0,0.44330132]
[1733490306975,0.003863,97940.0,97939.0,0.24347281]
[1733490307203,0.003863,97940.0,97939.0,0.24247281]
[1733490307395,0.003863,97940.0,97939.0,0.10503154]
[1733490307660,0.003863,97940.0,97939.0,0.10703154]
[1733490307958,0.026863,97940.0,97939.0,0.10703154]
[1733490308183,0.000863,97940.0,97939.0,0.10703154]
[1733490308881,0.000863,97940.0,97939.0,0.10503154]
[1733490309112,0.023,97932.0,97930.0,0.001726]
[1733490309335,0.204225,97931.0,97930.0,0.10675754]
[1733490309562,0.227225,97931.0,97930.0,0.10675754]
[1733490310753,0.227225,97931.0,97930.0,0.001726]
[1733490312107,0.227225,97931.0,97930.0,0.002726]
[1733490312781,0.227225,97931.0,97930.0,0.001726]
[1733490313499,0.228225,97931.0,97930.0,0.001726]
[1733490313736,0.230225,97931.0,97930.0,0.001726]
[1733490314442,0.229225,97931.0,97930.0,0.001726]
[1733490315113,0.2705696,97931.0,97930.0,0.001726]
[1733490315337,0.2725696,97931.0,97930.0,0.001726]
[1733490315610,0.2705696,97931.0,97930.0,0.001726]
[1733490315844,0.3205696,97931.0,97930.0,0.001726]
[1733490316090,0.4071696,97931.0,97930.0,0.001726]
[1733490316324,0.4071696,97931.0,97910.0,0.001726]
[1733490316325,0.277267,97911.0,97910.0,0.001726]
[1733490316555,0.408967,97911.0,97910.0,0.001726]
[1733490317247,0.05,97902.0,97875.0,0.09163763]
[1733490317487,0.35881093,97901.0,97871.0,0.09163763]
[1733490317720,0.357788,97901.0,97868.0,0.09163763]
[1733490317955,0.357788,97901.0,97867.0,0.09163763]
[1733490317956,0.42732898,97901.0,97867.0,0.09163763]
[1733490318186,0.42732898,97901.0,97900.0,0.00230749]
[1733490318426,0.53236052,97901.0,97900.0,0.00230749]
[1733490319144,0.53236052,97901.0,97856.0,0.09163763]
[1733490319145,0.204364,97865.0,97856.0,0.09163763]
[1733490319382,0.204364,97865.0,97850.0,0.204392]
[1733490319383,0.023,97886.0,97857.0,0.10503154]
[1733490319601,0.204374,97860.0,97857.0,0.10503154]
[1733490320049,0.408748,97860.0,97857.0,0.10503154]
[1733490320798,0.204374,97860.0,97857.0,0.10503154]
[1733490321444,0.204374,97860.0,97857.0,0.11403154]
[1733490321950,0.204374,97860.0,97857.0,0.10503154]
[1733490322177,0.204374,97860.0,97857.0,0.12303154]
[1733490322178,0.206374,97860.0,97857.0,0.12303154]
[1733490322865,0.410748,97860.0,97857.0,0.12303154]
[1733490323088,0.4313854,97860.0,97857.0,0.12303154]
[1733490323835,0.4313854,97860.0,97857.0,0.018]
[1733490323836,0.282477,97858.0,97857.0,0.018]
[1733490324064,0.305477,97858.0,97857.0,0.018]
[1733490325720,0.023,97857.0,97852.0,0.00017469]
[1733490325950,0.227388,97853.0,97852.0,0.00017469]
[1733490327303,0.38171954,97853.0,97852.0,0.00017469]
[1733490327526,0.38171954,97853.0,97852.0,0.00217469]
[1733490327751,0.40617814,97853.0,97852.0,0.00217469]
[1733490327979,0.58992605,97853.0,97852.0,0.00217469]
[1733490328446,0.72142605,97853.0,97852.0,0.00217469]
[1733490328676,0.72142605,97853.0,97850.0,0.0017264]
[1733490328677,0.254392,97851.0,97850.0,0.0017264]
[1733490328902,0.43242354,97851.0,97850.0,0.0017264]
[1733490329129,0.54277653,97851.0,97850.0,4e-07]
[1733490329367,0.64767145,97851.0,97850.0,4e-07]
[1733490329603,0.358892,97851.0,97850.0,4e-07]
[1733490330068,0.358892,97851.0,97850.0,0.0010004]
[1733490330069,0.367892,97851.0,97850.0,0.0010004]
[1733490330301,0.39674499,97851.0,97850.0,0.0010004]
[1733490330946,0.40274499,97851.0,97850.0,0.0020004]
[1733490331201,0.49301488,97851.0,97850.0,0.0020004]
[1733490331882,0.65852856,97851.0,97850.0,0.0020004]
[1733490332346,0.62967557,97851.0,97850.0,0.0020004]
[1733490333030,0.33437414,97851.0,97850.0,0.0020004]
[1733490333260,0.38437414,97851.0,97850.0,0.0020004]
[1733490333956,0.33437414,97851.0,97850.0,0.0020004]
[1733490334196,0.38437414,97851.0,97850.0,0.0020004]
[1733490334904,0.33437414,97851.0,97850.0,0.0020004]
[1733490335581,0.4209836,97851.0,97850.0,0.0020004]
[1733490336284,0.33437414,97851.0,97850.0,0.0020004]
[1733490336518,0.015,97851.0,97850.0,0.0020004]
[1733490337456,0.0001741,97853.0,97850.0,4e-07]
[1733490337684,0.006,97851.0,97850.0,0.0010004]
[1733490338778,0.006,97851.0,97850.0,0.0020004]
[1733490338779,0.012,97851.0,97850.0,0.0020004]
[1733490339058,0.006,97851.0,97850.0,0.0010004]
[1733490339290,0.001,97851.0,97850.0,4e-07]
[1733490339522,0.0001741,97853.0,97850.0,4e-07]
[1733490340021,0.001,97851.0,97850.0,4e-07]
[1733490340265,0.002,97851.0,97850.0,0.10503194]
[1733490340714,0.0001741,97853.0,97850.0,0.10503194]
[1733490340715,0.0001741,97853.0,97851.0,0.204392]
[1733490340940,0.0001741,97853.0,97852.0,0.1060533]
[1733490341159,0.0008638,97860.0,97852.0,0.1060533]
[1733490341409,0.0008638,97860.0,97859.0,0.30940654]
[1733490341663,0.0008638,97860.0,97859.0,0.50940654]
[1733490341877,0.0008638,97860.0,97859.0,0.45940654]
[1733490342550,0.0008638,97860.0,97859.0,0.10503154]
[1733490343010,0.0018638,97860.0,97859.0,0.11403154]
[1733490343242,0.0028638,97860.0,97859.0,0.12203154]
[1733490343468,0.0018638,97860.0,97859.0,0.11403154]
[1733490343675,0.0008638,97860.0,97859.0,0.10503154]
[1733490343881,0.0008638,97860.0,97859.0,0.10703154]
[1733490344132,0.0008638,97860.0,97859.0,0.11103154]
[1733490344343,0.0008638,97860.0,97859.0,0.11205335]
[1733490345201,0.0008638,97860.0,97859.0,0.10605335]
[1733490345448,0.0008638,97860.0,97859.0,0.25605335]
[1733490345681,0.0008638,97860.0,97859.0,0.38883154]
[1733490346129,0.0008638,97860.0,97859.0,0.39283154]
[1733490346397,0.0008638,97860.0,97859.0,0.38883154]
[1733490346613,0.0018638,97860.0,97859.0,0.4079011]
[1733490346825,0.0018638,97860.0,97859.0,0.3586011]
[1733490347030,0.0008638,97860.0,97859.0,0.3506011]
[1733490347243,0.0018638,97860.0,97859.0,0.3596011]
[1733490347506,0.0018638,97860.0,97859.0,0.2731011]
[1733490348344,0.0008638,97860.0,97859.0,0.2641011]
[1733490348782,0.0008638,97860.0,97859.0,0.2661011]
[1733490349012,0.0008638,97860.0,97859.0,0.2691011]
[1733490349226,0.0008638,97860.0,97859.0,0.2671011]
[1733490349449,0.0008638,97860.0,97859.0,0.2641011]
[1733490349675,0.0018638,97860.0,97859.0,0.2731011]
[1733490349907,0.0028638,97860.0,97859.0,0.2821011]
[1733490350172,0.0018638,97860.0,97859.0,0.2641011]
[1733490350373,0.0008638,97860.0,97859.0,0.2641011]
[1733490350583,0.0028638,97860.0,97859.0,0.2821011]
[1733490351235,0.0028638,97860.0,97859.0,0.1321011]
[1733490351678,0.0028638,97860.0,97859.0,0.12412287]
[1733490351679,0.0018638,97860.0,97859.0,0.12412287]
[1733490352310,0.0028638,97860.0,97859.0,0.13312287]
[1733490353683,0.0028638,97860.0,97859.0,0.1321011]
[1733490354163,0.2072368,97860.0,97859.0,0.1321011]
[1733490354409,0.2072368,97860.0,97859.0,0.02706956]
[1733490354611,0.2072368,97860.0,97859.0,0.018]
[1733490355739,0.204388,97853.0,97852.0,0.0001741]
[1733490355951,0.227388,97853.0,97852.0,0.0001741]
[1733490356377,0.27065148,97853.0,97852.0,0.0001741]
[1733490356835,0.39575148,97853.0,97852.0,0.0001741]
[1733490357045,0.39575148,97853.0,97852.0,0.0021741]
[1733490357257,0.352488,97853.0,97852.0,0.0021741]
[1733490358355,0.352488,97853.0,97852.0,0.0001741]
[1733490358595,0.352488,97853.0,97852.0,0.0031741]
[1733490358804,0.352488,97853.0,97852.0,0.0001741]
[1733490359004,0.352488,97853.0,97852.0,0.0011741]
[1733490359445,0.352488,97853.0,97852.0,0.0001741]
[1733490359658,0.42869898,97853.0,97852.0,0.0001741]
[1733490359863,0.1491,97853.0,97852.0,0.0001741]
[1733490360074,0.001,97853.0,97852.0,0.10520564]
[1733490360532,0.02402293,97859.0,97852.0,0.11450611]
[1733490360732,0.02402293,97859.0,97853.0,0.10503154]
[1733490360733,0.204377,97858.0,97853.0,0.10503154]
[1733490360948,0.0008638,97860.0,97853.0,0.10503154]
[1733490361159,0.204375,97859.0,97854.0,0.00930042]
[1733490361375,0.204375,97859.0,97855.0,0.10503154]
[1733490361823,0.204375,97859.0,97856.0,0.00930038]
[1733490362025,0.227379,97857.0,97856.0,0.00930038]
[1733490362481,0.204388,97853.0,97852.0,0.0001741]
[1733490362921,0.227388,97853.0,97852.0,0.0001741]
[1733490363137,0.204384,97855.0,97852.0,0.0001741]
[1733490363138,0.023,97854.0,97852.0,0.0001741]
[1733490363356,0.023,97856.0,97853.0,0.10503154]
[1733490363558,0.002,97857.0,97853.0,0.10503154]
[1733490363763,0.002,97857.0,97854.0,0.0093202]
[1733490363970,0.002,97857.0,97855.0,0.10503154]
[1733490364177,0.002,97857.0,97856.0,0.00932015]
[1733490364599,0.0008638,97860.0,97856.0,0.00932015]
[1733490365377,0.002,97857.0,97856.0,0.00932015]
[1733490365585,0.001,97857.0,97856.0,0.11435169]
[1733490366035,0.0038638,97860.0,97857.0,0.408758]
[1733490366234,0.0008638,97860.0,97858.0,0.10503154]
[1733490366440,0.0028638,97860.0,97858.0,0.11435118]
[1733490366933,0.204375,97859.0,97858.0,0.00931964]
[1733490367104,0.24543787,97859.0,97858.0,0.00931964]
[1733490367251,0.24543787,97859.0,97852.0,0.0001741]
[1733490367252,0.023,97854.0,97852.0,0.0001741]
[1733490367641,0.10142293,97853.0,97852.0,0.0001741]
[1733490368792,0.0008638,97860.0,97852.0,0.0001741]
[1733490368793,0.0008638,97860.0,97852.0,0.10520564]
[1733490369016,0.001,97859.0,97853.0,0.31044132]
[1733490369235,0.001,97859.0,97858.0,0.204377]
[1733490369439,0.0008638,97860.0,97858.0,0.30940854]
[1733490369651,0.0008638,97860.0,97859.0,0.1060533]
[1733490369861,0.0008638,97860.0,97859.0,0.30940654]
[1733490370066,0.0008638,97860.0,97859.0,0.31873578]
[1733490370709,0.0018638,97860.0,97859.0,0.31873578]
[1733490370917,0.0038638,97860.0,97859.0,0.31873578]
[1733490371359,0.0018638,97860.0,97859.0,0.31873578]
[1733490371570,0.0028638,97860.0,97859.0,0.31873578]
[1733490372079,0.0018638,97860.0,97859.0,0.31873578]
[1733490372279,0.0018638,97860.0,97859.0,0.32073578]
[1733490372506,0.0008638,97860.0,97859.0,0.32073578]
[1733490372755,0.0018638,97860.0,97859.0,0.31873578]
[1733490373210,0.0008638,97860.0,97859.0,0.31873578]
[1733490373434,0.0008638,97860.0,97859.0,0.11436078]
[1733490373647,0.06582378,97860.0,97859.0,0.00932924]
[1733490373870,0.14262378,97860.0,97859.0,0.00932924]
[1733490374096,0.227375,97859.0,97852.0,0.0001741]
[1733490374340,0.227388,97853.0,97852.0,0.0001741]
[1733490374978,0.30805458,97853.0,97852.0,0.0001741]
[1733490375929,0.30805458,97853.0,97852.0,0.0031741]
[1733490376389,0.30805458,97853.0,97852.0,0.0041741]
[1733490376593,0.39055458,97853.0,97852.0,0.0041741]
[1733490376814,0.39055458,97853.0,97852.0,0.0031741]
[1733490377031,0.39155458,97853.0,97852.0,0.0031741]
[1733490377525,0.61344258,97853.0,97850.0,4e-07]
[1733490377747,0.227392,97851.0,97850.0,4e-07]
[1733490377967,0.227392,97851.0,97840.0,0.0017268]
[1733490377968,0.227413,97841.0,97840.0,0.0017268]
[1733490378636,0.302413,97841.0,97840.0,0.0017268]
[1733490379741,0.305413,97841.0,97840.0,0.0017268]
[1733490379949,0.310413,97841.0,97840.0,0.0017268]
[1733490380622,0.307413,97841.0,97840.0,0.0017268]
[1733490381091,0.3890345,97841.0,97840.0,0.0017268]
[1733490381285,0.3840345,97841.0,97840.0,0.0017268]
[1733490381514,0.3900345,97841.0,97840.0,0.0027268]
[1733490382451,0.3930345,97841.0,97840.0,0.0027268]
[1733490382879,0.40341488,97841.0,97840.0,0.0027268]
[1733490383241,0.40041488,97841.0,97840.0,0.0027268]
[1733490383605,0.40341488,97841.0,97840.0,0.0027268]
[1733490384083,0.40041488,97841.0,97840.0,0.0027268]
[1733490384305,0.39441488,97841.0,97840.0,0.0017268]
[1733490384738,0.40041488,97841.0,97840.0,0.0027268]
[1733490385006,0.39441488,97841.0,97840.0,0.0017268]
[1733490385216,0.40041488,97841.0,97840.0,0.0027268]
[1733490385636,0.40041488,97841.0,97840.0,0.0017268]
[1733490385637,0.39441488,97841.0,97840.0,0.0017268]
[1733490385865,0.40041488,97841.0,97840.0,0.0027268]
[1733490386093,0.39741488,97841.0,97840.0,0.0017268]
[1733490386708,0.39441488,97841.0,97840.0,0.0017268]
[1733490386922,0.31279338,97841.0,97840.0,0.0017268]
[1733490387132,0.31579338,97841.0,97840.0,0.0017268]
[1733490387558,0.32179338,97841.0,97840.0,0.0027268]
[1733490387776,0.32179338,97841.0,97840.0,0.0017268]
[1733490387777,0.31579338,97841.0,97840.0,0.0017268]
[1733490388195,0.32179338,97841.0,97840.0,0.0027268]
[1733490388446,0.39485362,97841.0,97840.0,0.0017268]
[1733490388661,0.40085362,97841.0,97840.0,0.0027268]
[1733490388939,0.38885362,97841.0,97840.0,0.0017268]
[1733490389355,0.39085362,97841.0,97840.0,0.0017268]
[1733490389579,0.39385362,97841.0,97840.0,0.0017268]
[1733490389814,0.32079338,97841.0,97840.0,0.0017268]
[1733490390252,0.31779338,97841.0,97840.0,0.0017268]
[1733490390671,0.32079338,97841.0,97840.0,0.0017268]
[1733490391104,0.31279338,97841.0,97840.0,0.0017268]
[1733490391566,0.31779338,97841.0,97840.0,0.0017268]
[1733490391776,0.3907675,97841.0,97840.0,0.0017268]
[1733490392204,0.54579904,97841.0,97840.0,0.0017268]
[1733490392432,0.54879904,97841.0,97840.0,0.0017268]
[1733490392871,0.49879904,97841.0,97840.0,0.0017268]
[1733490393092,0.3937675,97841.0,97840.0,0.0017268]
[1733490393310,0.32079338,97841.0,97840.0,0.0017268]
[1733490394178,0.11638038,97841.0,97840.0,0.0017268]
[1733490394389,0.04138038,97841.0,97840.0,0.0017268]
[1733490394592,0.008,97841.0,97840.0,0.0017268]
[1733490395235,0.008,97841.0,97840.0,0.01146526]
[1733490395441,0.008,97841.0,97840.0,0.0017268]
[1733490395666,0.0212401,97841.0,97840.0,0.01146526]
[1733490395875,0.003,97841.0,97840.0,0.0017268]
[1733490396099,0.008,97841.0,97840.0,0.0017268]
[1733490396358,0.031,97841.0,97840.0,0.0017268]
[1733490397674,0.03202293,97841.0,97840.0,0.0017268]
[1733490401070,0.031,97841.0,97840.0,0.0017268]
[1733490401275,0.03202293,97841.0,97840.0,0.0017268]
[1733490401782,0.23643593,97841.0,97840.0,0.0017268]
[1733490401984,0.235413,97841.0,97840.0,0.0017268]
[1733490403497,0.26867346,97841.0,97840.0,0.0017268]
[1733490404658,0.235413,97841.0,97840.0,0.0017268]
[1733490404885,0.031,97841.0,97840.0,0.0017268]
[1733490405330,0.03202293,97841.0,97840.0,0.0017268]
[1733490409368,0.15614574,97841.0,97840.0,0.0017268]
[1733490409577,0.20716867,97841.0,97840.0,0.0017268]
[1733490409787,0.31104066,97841.0,97840.0,0.0017268]
[1733490410892,0.30439492,97841.0,97840.0,0.0017268]
[1733490411150,0.336634,97831.0,97830.0,0.0017268]
[1733490411352,0.336634,97831.0,97820.0,0.001727]
[1733490411353,0.609655,97821.0,97820.0,0.001727]
[1733490411781,0.71151,97821.0,97820.0,0.001727]
[1733490412835,0.71368417,97821.0,97820.0,0.001727]
[1733490415667,0.46368417,97821.0,97820.0,0.001727]
[1733490415884,0.31182917,97821.0,97820.0,0.001727]
[1733490416109,0.32190327,97821.0,97820.0,0.001727]
[1733490417921,0.32290327,97821.0,97820.0,0.001727]
[1733490425791,0.32599754,97821.0,97820.0,0.001727]
[1733490426065,0.34841918,97821.0,97820.0,0.001727]
[1733490427326,0.50345072,97821.0,97820.0,1e-06]
[1733490427549,0.54865072,97821.0,97820.0,1e-06]
[1733490427752,0.54765072,97821.0,97820.0,1e-06]
[1733490427959,0.54565072,97821.0,97820.0,1e-06]
[1733490428196,0.54965072,97821.0,97820.0,1e-06]
[1733490428441,0.55865072,97821.0,97820.0,1e-06]
[1733490428668,0.55465072,97821.0,97820.0,1e-06]
[1733490429121,0.354175,97811.0,97804.0,0.27466687]
[1733490429322,0.53551784,97811.0,97804.0,0.27466687]
[1733490429531,0.55150973,97811.0,97810.0,0.01186282]
[1733490429985,0.55150973,97811.0,97810.0,0.0017274]
[1733490430623,0.57198643,97811.0,97810.0,0.0017274]
[1733490431087,0.58098643,97811.0,97810.0,0.0017274]
[1733490432234,0.59614787,97811.0,97810.0,0.0017274]
[1733490432690,0.408988,97805.0,97804.0,0.17242187]
[1733490432919,0.61891446,97805.0,97804.0,0.17242187]
[1733490433380,0.204576,97763.0,97762.0,0.13741275]
[1733490433589,0.227576,97763.0,97762.0,0.13741275]
[1733490433797,0.227576,97763.0,97762.0,0.14755647]
[1733490434463,0.227576,97763.0,97762.0,0.13741275]
[1733490434682,0.227576,97763.0,97750.0,0.0017268]
[1733490434683,0.204589,97757.0,97750.0,0.0017268]
[1733490434954,0.204599,97752.0,97751.0,0.10503154]
[1733490435844,0.204593,97755.0,97751.0,0.10503154]
[1733490436321,0.0009824,97770.0,97751.0,0.10503154]
[1733490436524,0.0009824,97770.0,97760.0,0.20458]
[1733490436751,0.00102293,97789.0,97761.0,0.10503154]
[1733490436752,0.023,97772.0,97761.0,0.10503154]
[1733490436963,0.02402293,97789.0,97761.0,0.10503154]
[1733490436964,0.01027215,97780.0,97761.0,0.19671794]
[1733490437167,0.204557,97773.0,97762.0,0.00102285]
[1733490437374,0.204557,97773.0,97763.0,0.10503154]
[1733490437599,0.001,97770.0,97763.0,0.11519504]
[1733490437829,0.01027215,97780.0,97763.0,0.11519504]
[1733490437830,0.204544,97779.0,97766.0,0.204568]
[1733490438038,0.00102293,97778.0,97768.0,0.204565]
[1733490438246,0.227542,97779.0,97769.0,0.10503154]
[1733490438476,0.00102293,97782.0,97769.0,0.10503154]
[1733490438477,0.023,97781.0,97770.0,0.204561]
[1733490438714,0.023,97781.0,97769.0,0.1151949]
[1733490438715,0.001,97773.0,97769.0,0.1151949]
[1733490438942,0.002,97770.0,97769.0,0.10503154]
[1733490439640,0.022755,97770.0,97762.0,0.204578]
[1733490439888,0.022755,97770.0,97763.0,0.10503154]
[1733490440094,0.020755,97770.0,97763.0,0.10503154]
[1733490440299,0.020755,97770.0,97769.0,0.001]
[1733490440651,0.020755,97770.0,97763.0,0.10503154]
[1733490440858,0.002,97770.0,97763.0,0.10503154]
[1733490441084,0.002,97770.0,97768.0,0.204565]
[1733490441297,0.023,97778.0,97768.0,0.204565]
[1733490441497,0.002,97770.0,97768.0,0.204565]
[1733490442755,0.002,97770.0,97764.0,0.204573]
[1733490442960,0.002,97770.0,97765.0,0.10503154]
[1733490444448,0.02275749,97770.0,97766.0,0.20457]
[1733490444676,0.002,97770.0,97766.0,0.51417154]
[1733490445328,0.002,97770.0,97766.0,0.10503154]
[1733490446384,0.204564,97769.0,97766.0,0.10503154]
[1733490446805,0.409128,97769.0,97766.0,0.10503154]
[1733490447032,0.062872,97768.0,97766.0,0.10503154]
[1733490447550,0.062872,97768.0,97767.0,0.01018843]
[1733490447757,0.204559,97772.0,97767.0,0.01018843]
[1733490447949,0.204565,97769.0,97767.0,0.01018843]
[1733490448185,0.204579,97762.0,97760.0,0.0017304]
[1733490448368,0.204579,97762.0,97761.0,0.10503154]
[1733490448714,0.20457,97766.0,97761.0,0.11521528]
[1733490448959,0.020557,97765.0,97761.0,0.11521528]
[1733490449155,0.001,97768.0,97761.0,0.11521528]
[1733490449156,0.00202293,97768.0,97761.0,0.11521528]
[1733490449429,0.00102293,97768.0,97761.0,0.11521528]
[1733490449869,0.001,97769.0,97766.0,0.204568]
[1733490450148,0.001,97769.0,97767.0,0.30959954]
[1733490450327,0.001,97769.0,97767.0,0.31994513]
[1733490450984,0.00201133,97781.0,97767.0,0.11537713]
[1733490451199,0.20556293,97780.0,97767.0,0.11537713]
[1733490451409,0.001,97768.0,97767.0,0.11537713]
[1733490451610,0.00102293,97780.0,97767.0,0.11537713]
[1733490451822,0.001,97769.0,97767.0,0.11537713]
[1733490452139,0.02413949,97779.0,97768.0,0.204565]
[1733490452368,0.02413949,97779.0,97773.0,0.204555]
[1733490452594,0.00102293,97779.0,97773.0,0.204555]
[1733490452791,0.00102293,97779.0,97774.0,0.01034517]
[1733490453190,0.023,97782.0,97774.0,0.01034517]
[1733490453191,0.20556293,97781.0,97774.0,0.01034517]
[1733490453413,0.204542,97779.0,97774.0,0.01034517]
[1733490453629,0.00102293,97778.0,97769.0,0.10503154]
[1733490453817,0.00102293,97778.0,97775.0,0.0103454]
[1733490454035,0.00102293,97778.0,97772.0,0.204556]
[1733490454036,0.00102293,97781.0,97776.0,0.01034538]
[1733490454165,0.00102293,97780.0,97776.0,0.01034538]
[1733490454390,0.04434916,97779.0,97772.0,0.204556]
[1733490454610,0.04434916,97779.0,97772.0,0.30958754]
[1733490454819,0.04434916,97779.0,97773.0,0.01034545]
[1733490454820,0.04634916,97779.0,97773.0,0.01034545]
[1733490455047,0.008,97779.0,97774.0,0.001]
[1733490455306,0.006,97779.0,97773.0,0.01034545]
[1733490455502,0.008,97779.0,97777.0,0.30957654]
[1733490455777,0.014,97779.0,97778.0,0.10605419]
[1733490455992,0.014,97779.0,97778.0,0.11694039]
[1733490455993,0.008,97779.0,97778.0,0.11694039]
[1733490456203,0.006,97779.0,97778.0,0.11694039]
[1733490457293,0.006,97779.0,97778.0,0.2085411]
[1733490457514,0.006,97779.0,97778.0,0.20751845]
[1733490457773,0.006,97779.0,97778.0,0.20751442]
[1733490457966,0.006,97779.0,97778.0,0.20751489]
[1733490457967,0.009,97779.0,97778.0,0.20751489]
[1733490458099,0.009,97779.0,97778.0,0.20851489]
[1733490458299,0.20449,97804.0,97792.0,0.204515]
[1733490458501,0.24828648,97804.0,97793.0,0.10503154]
[1733490458724,0.04379648,97804.0,97794.0,0.204511]
[1733490458928,0.00200993,97805.0,97795.0,0.10503154]
[1733490459132,0.000987,97805.0,97796.0,0.204507]
[1733490459339,0.000987,97805.0,97797.0,0.10605402]
[1733490459547,0.000987,97805.0,97804.0,0.20449]
[1733490459548,0.00017414,97805.0,97804.0,0.20449]
[1733490459768,0.00017414,97805.0,97804.0,0.30952154]
[1733490459998,0.00017414,97805.0,97804.0,0.1159099]
[1733490460296,0.00017414,97805.0,97804.0,0.01087836]
[1733490460493,0.04217922,97805.0,97804.0,0.01087836]
[1733490460703,0.04320215,97805.0,97792.0,0.001]
[1733490460908,0.00102293,97804.0,97782.0,0.00102257]
[1733490461135,0.00102293,97804.0,97793.0,0.01016377]
[1733490461347,0.00102293,97804.0,97783.0,0.10503154]
[1733490461348,0.00102293,97804.0,97796.0,0.001]
[1733490461605,0.02317414,97805.0,97786.0,0.00102257]
[1733490461803,0.22766314,97805.0,97787.0,0.11520202]
[1733490462073,0.22766314,97805.0,97787.0,0.11622454]
[1733490462074,0.23366314,97805.0,97787.0,0.11622454]
[1733490462273,0.23366314,97805.0,97791.0,0.204517]
[1733490462487,0.004,97804.0,97792.0,0.10503154]
[1733490462705,0.004,97804.0,97792.0,0.1152019]
[1733490462706,0.227492,97803.0,97792.0,0.1152019]
[1733490463121,0.023,97804.0,97792.0,0.1152019]
[1733490463338,0.204492,97803.0,97792.0,0.1152019]
[1733490464105,0.00102293,97802.0,97792.0,0.1152019]
[1733490464395,0.204492,97803.0,97792.0,0.1152019]
[1733490464803,0.208492,97803.0,97792.0,0.1152019]
[1733490465217,0.204492,97803.0,97792.0,0.1152019]
[1733490465446,0.002,97802.0,97792.0,0.1152019]
[1733490465736,0.023,97804.0,97792.0,0.1152019]
[1733490465737,0.204496,97801.0,97792.0,0.1152019]
[1733490465893,0.023,97804.0,97792.0,0.1152019]
[1733490465894,0.03602104,97803.0,97792.0,0.1152019]
[1733490466123,0.00102293,97802.0,97792.0,0.1152019]
[1733490466333,0.204507,97796.0,97792.0,0.1152019]
[1733490466792,0.204507,97796.0,97792.0,0.10503154]
[1733490467012,0.0409005,97795.0,97792.0,0.10503154]
[1733490467235,0.0409005,97795.0,97793.0,0.0101694]
[1733490467442,0.0409005,97795.0,97794.0,0.10503154]
[1733490467965,0.0409005,97795.0,97794.0,0.11520092]
[1733490468889,0.0409005,97795.0,97794.0,0.11620092]
[1733490469086,0.0409005,97795.0,97794.0,0.11520092]
[1733490469311,0.0409005,97795.0,97794.0,0.01016938]